fUSD/lending_fUSD_20250305
["ID","MTS","AMOUNT","RATE_DAILY","PERIOD"]
[355493209,1741204247047,-500.0,0.00011261,2]
[355493210,1741204247056,-500.0,0.00011261,2]
[355493212,1741204247066,-764.46,0.00011261,2]
[355493214,1741204247075,-500.0,0.00011261,2]
[355493216,1741204247084,-500.0,0.00011261,2]
[355493218,1741204247093,-500.0,0.00011261,2]
[355493219,1741204247102,-500.0,0.00011261,2]
[355493221,1741204247112,-500.0,0.00011261,2]
[355493223,1741204247121,-527.57,0.00011261,2]
[355493225,1741204247130,-500.0,0.00011261,2]
[355493226,1741204247139,-500.0,0.00011261,2]
[355493228,1741204247148,-639.35,0.00011261,2]
[355493230,1741204247157,-500.0,0.00011261,2]
[355493232,1741204247169,-616.9,0.00011261,2]
[355493233,1741204247179,-5869.93,0.00011261,2]
[355493235,1741204247188,-625.74,0.00011261,2]
[355493237,1741204247197,-572.95,0.00011261,2]
[355493239,1741204247206,-816.99,0.00011261,2]
[355493241,1741204247216,-1182.01,0.00011261,2]
[355493243,1741204247225,-500.0,0.00011261,2]
[355493245,1741204247235,-899.32,0.00011261,2]
[355493246,1741204247244,-500.0,0.00011261,2]
[355493248,1741204247254,-1848.73,0.00011261,2]
[355493250,1741204247263,-2027.5,0.00011261,2]
[355493251,1741204247273,-873.26,0.00011261,2]
[355493253,1741204247282,-524.19,0.00011261,2]
[355493255,1741204247291,-500.0,0.00011261,2]
[355493257,1741204247300,-3937.63,0.00011261,2]
[355493259,1741204247309,-922.97,0.00011261,2]
[355493261,1741204247318,-1074.45,0.00011261,2]
[355493262,1741204247328,-500.0,0.00011261,2]
[355493264,1741204247337,-1778.95,0.00011261,2]
[355493266,1741204247346,-3319.18,0.00011261,2]
[355493268,1741204247355,-1326.5,0.00011261,2]
[355493270,1741204247364,-3863.19,0.00011261,2]
[355493272,1741204247373,-500.0,0.00011261,2]
[355493273,1741204247383,-278.17,0.00011261,2]
[355493275,1741204247392,-204.35,0.00011261,2]
[355493277,1741204247401,-851.93,0.00011261,2]
[355493279,1741204247412,-1104.86,0.00011261,2]
[355493281,1741204247421,-618.59,0.00011261,2]
[355493283,1741204247430,-500.0,0.00011261,2]
[355493284,1741204247439,-3235.42,0.00011261,2]
[355493286,1741204247448,-500.0,0.00011261,2]
[355493288,1741204247457,-500.0,0.00011261,2]
[355493290,1741204247466,-717.85,0.00011261,2]
[355493292,1741204247475,-1023.25,0.00011261,2]
[355493293,1741204247484,-500.0,0.00011261,2]
[355493295,1741204247493,-3284.31,0.00011261,2]
[355493297,1741204247502,-3341.2,0.00011261,2]
[355493299,1741204247511,-1219.23,0.00011261,2]
[355493301,1741204247522,-1621.51,0.00011261,2]
[355493302,1741204247534,-1220.73,0.00011261,2]
[355493304,1741204247543,-500.0,0.00011261,2]
[355493306,1741204247552,-661.02,0.00011261,2]
[355493308,1741204247562,-500.0,0.00011261,2]
[355493310,1741204247571,-1099.86,0.00011261,2]
[355493312,1741204247581,-749.07,0.00011261,2]
[355493313,1741204247590,-500.0,0.00011261,2]
[355493315,1741204247599,-555.15,0.00011261,2]
[355493317,1741204247609,-968.67,0.00011261,2]
[355493319,1741204247619,-239.92,0.00011261,2]
[355493321,1741204247628,-500.0,0.00011261,2]
[355493322,1741204247637,-604.78,0.00011261,2]
[355493324,1741204247646,-767.02,0.00011261,2]
[355493326,1741204247656,-778.03,0.00011261,2]
[355493328,1741204247667,-1967.24,0.00011261,2]
[355493330,1741204247676,-72.8256452,0.00011261,2]
[355493335,1741204247724,-405.17512303,0.00011261,2]
[355493338,1741204247737,-21.99923177,0.00011261,2]
[355493339,1741204247746,-500.0,0.00011261,2]
[355493341,1741204247756,-33.2632396,0.00011261,2]
[355493345,1741204247786,-3785.29063338,0.00011252,2]
[355493380,1741204248180,-2124.89496718,0.00011252,2]
[355493382,1741204248190,-3956.3667604,0.00011261,2]
[355493384,1741204248200,-505.03555201,0.00011261,2]
[355493388,1741204248225,-810.06699986,0.00011261,2]
[355493390,1741204248236,-5.48744813,0.00011261,2]
[355493392,1741204248244,-419.05133687,0.00011261,2]
[355493394,1741204248255,-662.77866313,0.00011261,2]
[355493396,1741204248262,-500.0,0.00011261,2]
[355493398,1741204248272,-1255.12,0.00011261,2]
[355493400,1741204248282,-1154.31,0.00011261,2]
[355493402,1741204248291,-500.0,0.00011261,2]
[355493404,1741204248300,-979.38,0.00011261,2]
[355493406,1741204248309,-500.0,0.00011261,2]
[355493407,1741204248319,-751.94,0.00011261,2]
[355493408,1741204248328,-500.0,0.00011261,2]
[355493409,1741204248337,-500.0,0.00011261,2]
[355493410,1741204248347,-916.43,0.00011261,2]
[355493411,1741204248355,-1419.21,0.00011261,2]
[355493412,1741204248364,-229.1,0.00011261,2]
[355493413,1741204248373,-1451.12,0.00011261,2]
[355493414,1741204248383,-793.95,0.00011261,2]
[355493415,1741204248393,-500.0,0.00011261,2]
[355493416,1741204248402,-500.0,0.00011261,2]
[355493417,1741204248412,-500.0,0.00011261,2]
[355493418,1741204248421,-6900.12,0.00011261,2]
[355493419,1741204248430,-726.0,0.00011261,2]
[355493420,1741204248440,-970.59,0.00011261,2]
[355493421,1741204248449,-800.54,0.00011261,2]
[355493422,1741204248459,-576.19,0.00011261,2]
[355493423,1741204248468,-1013.37,0.00011261,2]
[355493424,1741204248478,-1069.88,0.00011261,2]
[355493425,1741204248487,-2105.55,0.00011261,2]
[355493426,1741204248497,-500.0,0.00011261,2]
[355493428,1741204248506,-891.86,0.00011261,2]
[355493429,1741204248516,-1411.97,0.00011261,2]
[355493431,1741204248525,-703.99,0.00011261,2]
[355493432,1741204248539,-739.98,0.00011261,2]
[355493434,1741204248549,-999.07,0.00011261,2]
[355493436,1741204248558,-1337.85,0.00011261,2]
[355493438,1741204248568,-500.0,0.00011261,2]
[355493440,1741204248578,-920.51,0.00011261,2]
[355493442,1741204248588,-500.0,0.00011261,2]
[355493444,1741204248597,-652.16,0.00011261,2]
[355493446,1741204248607,-500.0,0.00011261,2]
[355493448,1741204248618,-500.0,0.00011261,2]
[355493450,1741204248627,-1136.06,0.00011261,2]
[355493452,1741204248638,-1327.48,0.00011261,2]
[355493454,1741204248647,-7674.84,0.00011261,2]
[355493456,1741204248657,-606.92,0.00011261,2]
[355493458,1741204248668,-500.0,0.00011261,2]
[355493460,1741204248678,-518.05,0.00011261,2]
[355493463,1741204248688,-899.48,0.00011261,2]
[355493465,1741204248698,-648.91,0.00011261,2]
[355493467,1741204248708,-500.0,0.00011261,2]
[355493469,1741204248718,-1082.85,0.00011261,2]
[355493471,1741204248727,-813.77,0.00011261,2]
[355493473,1741204248738,-1783.68,0.00011261,2]
[355493475,1741204248748,-500.0,0.00011261,2]
[355493477,1741204248757,-888.01,0.00011261,2]
[355493479,1741204248766,-773.49,0.00011261,2]
[355493480,1741204248775,-1129.85,0.00011261,2]
[355493482,1741204248785,-500.0,0.00011261,2]
[355493484,1741204248794,-1153.95,0.00011261,2]
[355493486,1741204248804,-1078.38,0.00011261,2]
[355493488,1741204248814,-500.0,0.00011261,2]
[355493490,1741204248824,-572.49,0.00011261,2]
[355493492,1741204248833,-500.0,0.00011261,2]
[355493495,1741204248843,-500.0,0.00011262,2]
[355493497,1741204248852,-500.0,0.00011262,2]
[355493499,1741204248860,-500.0,0.00011262,2]
[355493501,1741204248869,-500.0,0.00011262,2]
[355493503,1741204248878,-500.0,0.00011262,2]
[355493505,1741204248888,-500.0,0.00011262,2]
[355493507,1741204248897,-500.0,0.00011262,2]
[355493509,1741204248906,-500.0,0.00011262,2]
[355493511,1741204248915,-500.0,0.00011262,2]
[355493513,1741204248924,-500.0,0.00011262,2]
[355493515,1741204248934,-500.0,0.00011262,2]
[355493517,1741204248943,-500.0,0.00011262,2]
[355493519,1741204248952,-500.0,0.00011262,2]
[355493521,1741204248961,-552.86,0.00011262,2]
[355493523,1741204248970,-566.28,0.00011262,2]
[355493525,1741204248979,-500.0,0.00011262,2]
[355493526,1741204248988,-500.0,0.00011262,2]
[355493528,1741204248999,-500.0,0.00011262,2]
[355493530,1741204249009,-500.0,0.00011262,2]
[355493532,1741204249019,-500.0,0.00011262,2]
[355493534,1741204249028,-500.0,0.00011262,2]
[355493537,1741204249039,-500.0,0.00011262,2]
[355493538,1741204249049,-186.75053209,0.00011262,2]
[355493540,1741204249058,-500.0,0.00011262,2]
[355493542,1741204249068,-500.0,0.00011262,2]
[355493544,1741204249077,-500.0,0.00011262,2]
[355493546,1741204249087,-500.0,0.00011262,2]
[355493548,1741204249097,-500.0,0.00011262,2]
[355493550,1741204249106,-1060.36,0.00011262,2]
[355493552,1741204249115,-500.0,0.00011262,2]
[355493554,1741204249125,-549.95,0.00011262,2]
[355493556,1741204249135,-500.0,0.00011262,2]
[355493558,1741204249144,-500.0,0.00011262,2]
[355493560,1741204249154,-500.0,0.00011262,2]
[355493562,1741204249165,-511.99,0.00011262,2]
[355493564,1741204249175,-611.93,0.00011262,2]
[355493566,1741204249185,-500.0,0.00011262,2]
[355493568,1741204249195,-500.0,0.00011262,2]
[355493570,1741204249204,-646.97,0.00011262,2]
[355493572,1741204249213,-500.0,0.00011262,2]
[355493574,1741204249222,-500.0,0.00011262,2]
[355493576,1741204249231,-594.01,0.00011262,2]
[355493578,1741204249241,-500.0,0.00011262,2]
[355493580,1741204249250,-870.26,0.00011262,2]
[355493582,1741204249259,-525.9,0.00011262,2]
[355493584,1741204249269,-651.12,0.00011262,2]
[355493586,1741204249281,-500.0,0.00011262,2]
[355493588,1741204249291,-500.0,0.00011262,2]
[355493589,1741204249300,-760.12,0.00011262,2]
[355493591,1741204249309,-500.0,0.00011262,2]
[355493593,1741204249319,-500.0,0.00011262,2]
[355493595,1741204249328,-1309.68,0.00011262,2]
[355493598,1741204249338,-500.0,0.00011262,2]
[355493599,1741204249347,-905.35,0.00011262,2]
[355493601,1741204249357,-500.0,0.00011262,2]
[355493604,1741204249367,-500.0,0.00011262,2]
[355493606,1741204249377,-500.0,0.00011262,2]
[355493608,1741204249387,-645.63,0.00011262,2]
[355493609,1741204249396,-881.82,0.00011262,2]
[355493611,1741204249405,-325.05,0.00011262,2]
[355493613,1741204249416,-728.28,0.00011262,2]
[355493615,1741204249426,-524.4,0.00011262,2]
[355493617,1741204249435,-500.0,0.00011262,2]
[355493619,1741204249445,-810.05,0.00011262,2]
[355493621,1741204249455,-858.58,0.00011262,2]
[355493623,1741204249465,-975.2,0.00011262,2]
[355493625,1741204249474,-662.88,0.00011262,2]
[355493627,1741204249483,-521.78,0.00011262,2]
[355493629,1741204249492,-500.0,0.00011262,2]
[355493631,1741204249502,-725.69,0.00011262,2]
[355493633,1741204249512,-500.0,0.00011262,2]
[355493636,1741204249525,-854.34,0.00011262,2]
[355493638,1741204249535,-500.0,0.00011262,2]
[355493640,1741204249544,-520.16,0.00011262,2]
[355493642,1741204249553,-711.45,0.00011262,2]
[355493643,1741204249562,-500.0,0.00011262,2]
[355493645,1741204249571,-500.0,0.00011262,2]
[355493660,1741204249696,-624.12,0.00011262,2]
[355493662,1741204249706,-500.0,0.00011262,2]
[355493664,1741204249715,-1091.72,0.00011262,2]
[355493666,1741204249724,-500.0,0.00011262,2]
[355493668,1741204249733,-668.1,0.00011262,2]
[355493670,1741204249744,-839.04,0.00011262,2]
[355493672,1741204249753,-500.0,0.00011262,2]
[355493674,1741204249762,-500.0,0.00011262,2]
[355493676,1741204249771,-1438.56,0.00011262,2]
[355493678,1741204249780,-500.0,0.00011262,2]
[355493680,1741204249790,-500.0,0.00011262,2]
[355493682,1741204249799,-500.0,0.00011262,2]
[355493684,1741204249808,-504.36386359,0.00011262,2]
[355493686,1741204249821,-189.58613641,0.00011262,2]
[355493688,1741204249831,-523.33,0.00011262,2]
[355493690,1741204249841,-561.21,0.00011262,2]
[355493692,1741204249851,-355.70624614,0.00011262,2]
[355493695,1741204249866,-205.24375386,0.00011262,2]
[355493697,1741204249875,-214.04,0.00011262,2]
[355493699,1741204249885,-1501.51,0.00011262,2]
[355493701,1741204249895,-737.71,0.00011262,2]
[355493703,1741204249904,-706.36,0.00011262,2]
[355493705,1741204249914,-500.0,0.00011262,2]
[355493707,1741204249923,-99.91023168,0.00011262,2]
[355493709,1741204249935,-400.08976832,0.00011262,2]
[355493711,1741204249943,-943.37,0.00011262,2]
[355493713,1741204249953,-132.96023168,0.00011262,2]
[355493778,1741204250564,-500.0,0.00010987,2]
[355493780,1741204250576,-604.1250125,0.00010987,2]
[355493784,1741204250600,-85.6649875,0.00010987,2]
[355493786,1741204250611,-689.79,0.00011261,2]
[355493788,1741204250621,-500.0,0.00011261,2]
[355493790,1741204250630,-367.03976832,0.00011262,2]
[355493792,1741204250639,-500.0,0.00011262,2]
[355493794,1741204250648,-800.25,0.00011262,2]
[355493795,1741204250657,-500.0,0.00011262,2]
[355493796,1741204250667,-39.43394418,0.00011262,2]
[355493797,1741204250684,-460.56605582,0.00011262,2]
[355493798,1741204250693,-500.0,0.00011262,2]
[355493799,1741204250702,-500.0,0.00011262,2]
[355493800,1741204250711,-1346.62,0.00011262,2]
[355493801,1741204250720,-505.48,0.00011262,2]
[355493802,1741204250729,-500.0,0.00011262,2]
[355493803,1741204250738,-500.0,0.00011262,2]
[355493804,1741204250747,-1041.0,0.00011262,2]
[355493805,1741204250756,-1151.1,0.00011262,2]
[355493806,1741204250766,-500.0,0.00011262,2]
[355493807,1741204250776,-500.0,0.00011262,2]
[355493808,1741204250785,-500.0,0.00011262,2]
[355493809,1741204250795,-843.15,0.00011262,2]
[355493810,1741204250804,-500.0,0.00011262,2]
[355493811,1741204250813,-500.0,0.00011262,2]
[355493813,1741204250823,-500.0,0.00011262,2]
[355493814,1741204250832,-500.0,0.00011262,2]
[355493815,1741204250841,-780.02,0.00011262,2]
[355493816,1741204250850,-796.7,0.00011262,2]
[355493817,1741204250860,-500.0,0.00011262,2]
[355493818,1741204250870,-814.33,0.00011262,2]
[355493819,1741204250880,-500.0,0.00011262,2]
[355493820,1741204250890,-525.12,0.00011262,2]
[355493821,1741204250902,-926.97,0.00011262,2]
[355493822,1741204250911,-500.0,0.00011262,2]
[355493823,1741204250922,-1178.87,0.00011262,2]
[355493824,1741204250931,-500.0,0.00011262,2]
[355493825,1741204250941,-913.08,0.00011262,2]
[355493826,1741204250951,-500.0,0.00011262,2]
[355493827,1741204250961,-500.0,0.00011262,2]
[355493828,1741204250972,-645.88,0.00011262,2]
[355493829,1741204250982,-1105.26,0.00011262,2]
[355493831,1741204250992,-694.7,0.00011262,2]
[355493833,1741204251001,-527.05,0.00011262,2]
[355493835,1741204251010,-526.85,0.00011262,2]
[355493837,1741204251020,-500.0,0.00011262,2]
[355493839,1741204251029,-500.0,0.00011262,2]
[355493841,1741204251040,-627.59,0.00011262,2]
[355493843,1741204251049,-500.0,0.00011262,2]
[355493845,1741204251059,-500.0,0.00011262,2]
[355493847,1741204251068,-500.0,0.00011262,2]
[355493848,1741204251078,-911.12,0.00011262,2]
[355493850,1741204251087,-500.0,0.00011262,2]
[355493853,1741204251097,-500.0,0.00011262,2]
[355493855,1741204251106,-500.0,0.00011262,2]
[355493856,1741204251116,-719.51,0.00011262,2]
[355493858,1741204251126,-648.31,0.00011262,2]
[355493861,1741204251135,-547.36,0.00011262,2]
[355493863,1741204251145,-500.0,0.00011262,2]
[355493864,1741204251154,-980.67,0.00011262,2]
[355493866,1741204251164,-826.87,0.00011262,2]
[355493868,1741204251174,-500.0,0.00011262,2]
[355493870,1741204251184,-500.0,0.00011262,2]
[355493872,1741204251193,-681.81,0.00011262,2]
[355493874,1741204251203,-804.62,0.00011262,2]
[355493876,1741204251212,-806.64,0.00011262,2]
[355493878,1741204251222,-1045.28,0.00011262,2]
[355493881,1741204251232,-1047.97,0.00011263,2]
[355493883,1741204251242,-1050.67,0.00011263,2]
[355493884,1741204251252,-1338.0,0.00011263,2]
[355493887,1741204251262,-1552.28,0.00011263,2]
[355493888,1741204251271,-3232.2,0.00011263,2]
[355493891,1741204251281,-2657.97,0.00011263,2]
[355493892,1741204251290,-16628.75,0.00011263,2]
[355493895,1741204251300,-1389.35,0.00011263,2]
[355493897,1741204251310,-2183.31730659,0.00011263,2]
[355493901,1741204251346,-465.4832427,0.00011263,2]
[355493906,1741204251376,-305.764,0.00011263,2]
[355493908,1741204251388,-360.96548398,0.00011263,2]
[355494059,1741204252967,-5597.451595,0.00011263,2]
[355494062,1741204252989,-3345.20142097,0.00011263,2]
[355494107,1741204253404,-5000.0,0.00010888,2]
[355494109,1741204253416,-4607.41695076,0.00011263,2]
[355494111,1741204253425,-2021.26,0.00011263,2]
[355494113,1741204253434,-626.3,0.00011263,2]
[355494115,1741204253443,-1496.23,0.00011263,2]
[355494117,1741204253453,-3311.5,0.00011263,2]
[355494119,1741204253462,-1139.34,0.00011263,2]
[355494121,1741204253471,-500.0,0.00011263,2]
[355494123,1741204253480,-2435.61,0.00011263,2]
[355494125,1741204253489,-2111.13,0.00011263,2]
[355494127,1741204253498,-1324.34,0.00011263,2]
[355494129,1741204253508,-609.65,0.00011263,2]
[355494131,1741204253518,-500.0,0.00011264,2]
[355494133,1741204253528,-535.27,0.00011264,2]
[355494135,1741204253540,-500.0,0.00011264,2]
[355494137,1741204253550,-517.73,0.00011264,2]
[355494139,1741204253559,-500.0,0.00011264,2]
[355494141,1741204253568,-159.0,0.00011264,3]
[355494143,1741204253578,-1000.0,0.00011266,2]
[355494145,1741204253589,-1848.73,0.00011279,2]
[355494147,1741204253598,-500.0,0.00011279,2]
[355494149,1741204253608,-150.0,0.00011292,2]
[355494151,1741204253617,-550.0,0.00011292,2]
[355494153,1741204253627,-2032.0,0.00011297,2]
[355494155,1741204253637,-1278.0,0.00011297,2]
[355494157,1741204253646,-1459.0,0.00011297,2]
[355494159,1741204253655,-571.0,0.00011297,2]
[355494161,1741204253664,-640.0,0.00011297,2]
[355494163,1741204253674,-786.0,0.00011297,2]
[355494165,1741204253683,-738.791,0.00011297,2]
[355494167,1741204253693,-265.991,0.00011297,2]
[355494169,1741204253702,-1269.0,0.00011297,2]
[355494170,1741204253711,-150.0,0.00011297,2]
[355494172,1741204253721,-1012.0,0.00011297,2]
[355494174,1741204253730,-3930.0,0.00011297,2]
[355494176,1741204253739,-150.0735908,0.000113,2]
[355494178,1741204253748,-451.34157473,0.00011314,2]
[355494180,1741204253758,-451.34157473,0.00011383,2]
[355494182,1741204253767,-150.0,0.00011395,2]
[355494184,1741204253777,-550.0,0.00011395,2]
[355494186,1741204253786,-6770.92,0.00011427,2]
[355494188,1741204253795,-2602.35,0.00011427,2]
[355494190,1741204253805,-566.46,0.00011427,2]
[355494192,1741204253815,-5910.18560056,0.00011435,2]
[355494194,1741204253825,-275.8124,0.00011436,2]
[355494196,1741204253835,-451.34157473,0.00011452,2]
[355494198,1741204253845,-41890.82127185,0.00011485,2]
[355494200,1741204253855,-4000.0,0.00011494,3]
[355494203,1741204253867,-10592.66885251,0.000115,2]
[355494205,1741204253876,-1519.61,0.000115,2]
[355494207,1741204253886,-13480.84456767,0.00011509,2]
[355494208,1741204253896,-451.34157473,0.00011521,2]
[355494210,1741204253906,-171.89818383,0.00011525,2]
[355494212,1741204253916,-300.0,0.00011534,2]
[355494215,1741204253926,-666.0,0.00011534,2]
[355494216,1741204253936,-500.0,0.00011534,2]
[355494219,1741204253947,-769.2,0.00011534,2]
[355494220,1741204253959,-815.25,0.00011534,2]
[355494223,1741204253970,-701.0,0.00011535,2]
[355494224,1741204253980,-500.0,0.00011535,2]
[355494226,1741204253990,-604.69,0.00011535,2]
[355494228,1741204253999,-500.0,0.00011535,2]
[355494230,1741204254009,-724.15,0.00011535,2]
[355494232,1741204254019,-500.0,0.00011535,2]
[355494234,1741204254029,-500.0,0.00011535,2]
[355494237,1741204254039,-500.0,0.00011535,2]
[355494238,1741204254048,-500.0,0.00011535,2]
[355494240,1741204254058,-500.0,0.00011535,2]
[355494242,1741204254067,-550.59,0.00011535,2]
[355494244,1741204254077,-500.0,0.00011535,2]
[355494246,1741204254087,-500.0,0.00011535,2]
[355494248,1741204254096,-500.0,0.00011535,2]
[355494250,1741204254106,-671.5,0.00011535,2]
[355494252,1741204254116,-500.0,0.00011535,2]
[355494254,1741204254125,-500.0,0.00011535,2]
[355494256,1741204254135,-639.14,0.00011535,2]
[355494258,1741204254144,-633.40288181,0.00011535,2]
[355494261,1741204254153,-1003.707596,0.00011535,2]
[355494262,1741204254163,-637.96,0.00011535,2]
[355494263,1741204254173,-500.0,0.00011535,2]
[355494264,1741204254182,-455.39479966,0.00011535,2]
[355494265,1741204254191,-500.0,0.00011535,2]
[355494267,1741204254201,-756.999678,0.00011535,2]
[355494269,1741204254210,-500.0,0.00011535,2]
[355494271,1741204254219,-500.0,0.00011535,2]
[355494273,1741204254228,-500.0,0.00011535,2]
[355494275,1741204254237,-1152.59,0.00011535,2]
[355494277,1741204254247,-647.81,0.00011535,2]
[355494279,1741204254256,-500.0,0.00011535,2]
[355494281,1741204254265,-500.0,0.00011535,2]
[355494283,1741204254275,-843.07,0.00011535,2]
[355494285,1741204254284,-617.9,0.00011535,2]
[355494287,1741204254293,-500.0,0.00011535,2]
[355494289,1741204254304,-500.0,0.00011535,2]
[355494291,1741204254313,-500.0,0.00011535,2]
[355494293,1741204254323,-500.0,0.00011535,2]
[355494295,1741204254331,-500.0,0.00011535,2]
[355494297,1741204254340,-657.93,0.00011535,2]
[355494299,1741204254350,-500.0,0.00011535,2]
[355494301,1741204254359,-850.28,0.00011535,2]
[355494303,1741204254368,-500.0,0.00011535,2]
[355494305,1741204254377,-668.59,0.00011535,2]
[355494307,1741204254387,-500.0,0.00011535,2]
[355494309,1741204254396,-539.49,0.00011535,2]
[355494311,1741204254405,-500.0,0.00011535,2]
[355494312,1741204254415,-500.0,0.00011535,2]
[355494314,1741204254424,-581.0553046,0.00011535,2]
[355494317,1741204254437,-183.4046954,0.00011535,2]
[355494319,1741204254446,-500.0,0.00011535,2]
[355494320,1741204254456,-500.0,0.00011535,2]
[355494322,1741204254465,-500.0,0.00011535,2]
[355494324,1741204254474,-500.0,0.00011535,2]
[355494326,1741204254483,-500.0,0.00011535,2]
[355494328,1741204254492,-527.57,0.00011535,2]
[355494330,1741204254503,-500.0,0.00011535,2]
[355494332,1741204254512,-435.07169226,0.00011535,2]
[355494334,1741204254522,-639.35,0.00011535,2]
[355494337,1741204254534,-500.0,0.00011535,2]
[355494338,1741204254544,-616.9,0.00011535,2]
[355494340,1741204254553,-625.74,0.00011535,2]
[355494342,1741204254562,-572.95,0.00011535,2]
[355494344,1741204254571,-816.99,0.00011535,2]
[355494346,1741204254580,-1182.01,0.00011535,2]
[355494348,1741204254590,-500.0,0.00011535,2]
[355494350,1741204254600,-899.32,0.00011535,2]
[355494352,1741204254609,-500.0,0.00011535,2]
[355494354,1741204254619,-1848.73,0.00011535,2]
[355494356,1741204254628,-2027.5,0.00011535,2]
[355494358,1741204254638,-873.26,0.00011535,2]
[355494360,1741204254647,-524.19,0.00011535,2]
[355494363,1741204254658,-500.0,0.00011535,2]
[355494364,1741204254667,-3937.63,0.00011535,2]
[355494366,1741204254676,-922.97,0.00011535,2]
[355494368,1741204254685,-1074.45,0.00011535,2]
[355494370,1741204254695,-500.0,0.00011535,2]
[355494372,1741204254706,-1778.95,0.00011535,2]
[355494374,1741204254715,-3319.18,0.00011535,2]
[355494376,1741204254725,-1326.5,0.00011535,2]
[355494378,1741204254734,-3863.19,0.00011535,2]
[355494381,1741204254744,-500.0,0.00011535,2]
[355494383,1741204254753,-851.93,0.00011535,2]
[355494385,1741204254763,-1104.86,0.00011535,2]
[355494387,1741204254773,-618.59,0.00011535,2]
[355494389,1741204254786,-356.46212262,0.00011535,2]
[355494392,1741204254799,-3235.42,0.00011535,2]
[355494394,1741204254811,-500.0,0.00011535,2]
[355494396,1741204254821,-500.0,0.00011535,2]
[355494398,1741204254836,-717.85,0.00011535,2]
[355494400,1741204254846,-1023.25,0.00011535,2]
[355494402,1741204254857,-500.0,0.00011535,2]
[355494405,1741204254869,-3284.31,0.00011535,2]
[355494407,1741204254881,-3341.2,0.00011535,2]
[355494409,1741204254893,-1219.23,0.00011535,2]
[355494411,1741204254904,-1621.51,0.00011535,2]
[355494414,1741204254916,-1220.73,0.00011535,2]
[355494416,1741204254929,-500.0,0.00011535,2]
[355494418,1741204254940,-661.02,0.00011535,2]
[355494421,1741204254952,-500.0,0.00011535,2]
[355494423,1741204254966,-1099.86,0.00011535,2]
[355494425,1741204254978,-749.07,0.00011535,2]
[355494427,1741204254989,-500.0,0.00011535,2]
[355494429,1741204254998,-555.15,0.00011535,2]
[355494432,1741204255009,-968.67,0.00011535,2]
[355494434,1741204255021,-604.78,0.00011535,2]
[355494436,1741204255032,-500.0,0.00011535,2]
[355494438,1741204255043,-767.02,0.00011535,2]
[355494440,1741204255054,-778.03,0.00011535,2]
[355494443,1741204255065,-1967.24,0.00011535,2]
[355494445,1741204255077,-500.0,0.00011535,2]
[355494447,1741204255087,-1320.59,0.00011535,2]
[355494449,1741204255099,-3989.63,0.00011535,2]
[355494452,1741204255110,-500.0,0.00011535,2]
[355494454,1741204255122,-1081.83,0.00011535,2]
[355494456,1741204255133,-500.0,0.00011535,2]
[355494458,1741204255144,-1255.12,0.00011535,2]